bitfinex/quotes_ETHUSD_20240907
["timestamp","ask_amount","ask_price","bid_price","bid_amount"]
[1725695123253,4.35607,2295.7,2295.5,19.3828992]
[1725695123554,8.7123,2295.6,2295.5,19.3828992]
[1725695123711,8.7123,2295.6,2295.2,3.82]
[1725695123712,4.90615,2295.6,2295.2,3.82]
[1725695124646,4.35655,2295.4,2295.2,3.82]
[1725695125252,9.2624,2295.6,2295.2,3.82]
[1725695125423,4.90615,2295.6,2295.2,3.82]
[1725695125627,4.35646,2295.5,2295.2,3.82]
[1725695125935,4.35646,2295.5,2295.3,0.05706198]
[1725695126546,11.07976,2295.4,2295.3,0.05706198]
[1725695126758,11.62976,2295.4,2295.3,0.05706198]
[1725695128856,4.35653,2295.4,2295.3,0.05706198]
[1725695131089,4.35637,2295.5,2295.3,0.05706198]
[1725695131268,4.35635,2295.5,2295.3,0.05706198]
[1725695131643,8.71225,2295.7,2295.3,0.05706198]
[1725695131871,4.35612,2295.7,2295.3,0.1441885]
[1725695132070,4.35574,2295.9,2295.4,2.4656]
[1725695132295,4.35574,2295.9,2295.5,0.14475482]
[1725695132648,4.35579,2295.8,2295.5,0.14475482]
[1725695132845,4.35569,2295.9,2295.5,0.14475482]
[1725695133285,0.45617099,2295.8,2295.5,0.14475482]
[1725695135649,0.45617099,2295.8,2295.5,19.52765402]
[1725695139908,0.45617099,2295.8,2295.5,23.88399402]
[1725695140200,0.45617099,2295.8,2295.5,19.52765402]
[1725695141670,0.45617099,2295.8,2295.6,19.3828992]
[1725695141872,0.45617099,2295.8,2295.7,0.05718451]
[1725695142316,4.81195099,2295.8,2295.7,0.05718451]
[1725695142895,9.16773099,2295.8,2295.7,0.05718451]
[1725695143215,10.08450409,2295.8,2295.7,0.05718451]
[1725695144111,10.1783331,2295.8,2295.7,0.05718451]
[1725695147247,9.26156,2295.8,2295.7,0.05718451]
[1725695147740,4.35608,2295.7,2295.3,19.3828992]
[1725695150116,4.35618,2295.6,2295.3,19.3828992]
[1725695150312,8.71244,2295.6,2295.3,19.3828992]
[1725695150509,8.71246,2295.6,2295.3,19.3828992]
[1725695150754,4.35618,2295.6,2295.3,19.3828992]
[1725695151052,8.71244,2295.6,2295.3,19.3828992]
[1725695151339,4.35618,2295.6,2295.3,19.3828992]
[1725695151708,4.35653,2295.4,2295.3,19.3828992]
[1725695153555,4.35653,2295.4,2295.2,3.82]
[1725695154140,4.3564,2295.5,2295.2,3.82]
[1725695154350,0.45618803,2295.4,2295.2,3.82]
[1725695155720,0.45618803,2295.4,2295.3,0.05725803]
[1725695157739,4.81271803,2295.4,2295.3,0.05725803]
[1725695158047,5.72962983,2295.4,2295.3,0.05725803]
[1725695158253,4.81271803,2295.4,2295.3,0.05725803]
[1725695160826,0.45618803,2295.4,2295.3,0.05725803]
[1725695161033,0.45618803,2295.4,2295.3,11.25702178]
[1725695161342,0.45618803,2295.4,2295.3,15.42240053]
[1725695161872,0.45618803,2295.4,2295.3,16.32684156]
[1725695162345,0.45618803,2295.4,2295.3,15.05110591]
[1725695162557,0.45618803,2295.4,2295.3,0.05725803]
[1725695162714,4.81271803,2295.4,2295.3,0.05725803]
[1725695162920,5.52849983,2295.4,2295.3,0.05725803]
[1725695163156,4.81271803,2295.4,2295.3,0.05725803]
[1725695163718,9.16924803,2295.4,2295.3,0.05725803]
[1725695164018,9.71924803,2295.4,2295.3,0.05725803]
[1725695169750,16.42087803,2295.4,2295.3,0.05725803]
[1725695170751,4.35729,2295.0,2294.9,19.3828992]
[1725695170954,4.35748,2294.9,2294.8,19.3828992]
[1725695171497,4.81368982,2294.9,2294.8,19.3828992]
[1725695174490,4.81368982,2294.9,2294.6,19.3828992]
[1725695175207,0.45620982,2294.9,2294.6,23.7408192]
[1725695175365,0.45620982,2294.9,2294.7,6.62913]
[1725695177053,0.45620982,2294.9,2294.7,11.07400905]
[1725695177287,0.45620982,2294.9,2294.7,6.62903]
[1725695180490,0.45620982,2294.9,2294.7,26.0119292]
[1725695182357,0.45620982,2294.9,2294.7,21.6541992]
[1725695185817,0.45620982,2294.9,2294.8,4.50297108]
[1725695186005,0.01684189,2294.9,2294.8,10.56903239]
[1725695186302,0.01684189,2294.9,2294.8,10.94117975]
[1725695186503,0.01684189,2294.9,2294.8,31.22851998]
[1725695187217,0.01684189,2294.9,2294.8,30.32407895]
[1725695187791,0.01684189,2294.9,2294.8,31.22851998]
[1725695188996,0.01684189,2294.9,2294.8,29.95193159]
[1725695189171,0.01684189,2294.9,2294.8,31.22846595]
[1725695189878,0.01684189,2294.9,2294.8,40.02860696]
[1725695190078,0.00062216,2294.9,2294.8,40.02860696]
[1725695191781,0.00062216,2294.9,2294.8,40.56326165]
[1725695191985,0.00062216,2294.9,2294.8,40.56324948]
[1725695192171,0.00062216,2294.9,2294.8,41.01726412]
[1725695192364,0.00062216,2294.9,2294.8,39.15733969]
[1725695192563,0.00062216,2294.9,2294.8,40.47067867]
[1725695192792,0.00062216,2294.9,2294.8,41.01697318]
[1725695193597,0.00062216,2294.9,2294.8,39.94526008]
[1725695193762,0.00062216,2294.9,2294.8,34.59397758]
[1725695193956,0.00062216,2294.9,2294.8,39.94548749]
[1725695194617,0.00062216,2294.9,2294.8,38.99227822]
[1725695194767,0.00062216,2294.9,2294.8,39.94544462]
[1725695195397,0.00062216,2294.9,2294.8,27.74034879]
[1725695195696,0.00062216,2294.9,2294.8,28.87368941]
[1725695197016,0.00062216,2294.9,2294.8,24.51601941]
[1725695197176,0.00062216,2294.9,2294.8,23.23541211]
[1725695197374,0.00062216,2294.9,2294.8,28.87371197]
[1725695197719,0.00062216,2294.9,2294.8,27.59308211]
[1725695198178,0.00062216,2294.9,2294.8,28.50160045]
[1725695198360,0.00062216,2294.9,2294.8,27.59359216]
[1725695198565,0.00062216,2294.9,2294.8,28.5021105]
[1725695198767,0.00062216,2294.9,2294.8,27.59359216]
[1725695199404,0.00062216,2294.9,2294.8,28.5021105]
[1725695200365,0.00062216,2294.9,2294.8,27.59359216]
[1725695200564,0.00062216,2294.9,2294.8,28.5021105]
[1725695200766,0.00062216,2294.9,2294.8,27.59359216]
[1725695201103,0.00062216,2294.9,2294.8,28.87422651]
[1725695201520,0.00062216,2294.9,2294.8,31.35472651]
[1725695201706,0.00062216,2294.9,2294.8,35.71239651]
[1725695201867,0.00062216,2294.9,2294.8,35.75709568]
[1725695202072,0.00062216,2294.9,2294.8,35.71251918]
[1725695202297,0.00062216,2294.9,2294.8,35.71244276]
[1725695202705,0.00062216,2294.9,2294.8,35.34040317]
[1725695202907,0.00062216,2294.9,2294.8,35.71245082]
[1725695206440,0.00062216,2294.9,2294.8,40.69013611]
[1725695206638,0.00062216,2294.9,2294.8,40.69047251]
[1725695206843,0.00062216,2294.9,2294.8,41.13966339]
[1725695207031,0.00062216,2294.9,2294.8,40.69052723]
[1725695208050,0.00062216,2294.9,2294.8,33.85244006]
[1725695208349,0.00062216,2294.9,2294.8,25.0797948]
[1725695208516,0.00062216,2294.9,2294.8,27.96574178]
[1725695208721,0.00062216,2294.9,2294.8,27.59369413]
[1725695209118,0.00062216,2294.9,2294.8,28.87491361]
[1725695209806,0.00062216,2294.9,2294.8,29.28184818]
[1725695210006,0.00062216,2294.9,2294.8,29.82819575]
[1725695210207,0.00062216,2294.9,2294.8,28.91917018]
[1725695210403,0.00062216,2294.9,2294.8,35.79842826]
[1725695210644,0.00062216,2294.9,2294.8,37.12026791]
[1725695210911,2.4459,2295.4,2295.1,4.35709]
[1725695211119,2.4459,2295.6,2295.2,23.3200297]
[1725695211407,0.45608841,2295.3,2295.2,19.43828021]
[1725695211603,2.90198841,2295.3,2295.2,19.43828021]
[1725695212736,7.25870841,2295.3,2295.2,0.05538101]
[1725695212972,4.35695,2295.2,2295.0,19.3828992]
[1725695215067,4.3571,2295.1,2295.0,19.3828992]
[1725695215566,4.3571,2295.1,2295.0,19.43828021]
[1725695216468,4.3571,2295.1,2295.0,0.05538101]
[1725695216876,4.3571,2295.1,2294.8,19.3828992]
[1725695217359,2.4883,2295.0,2294.9,0.05538101]
[1725695217961,6.84559,2295.0,2294.9,1.57340335]
[1725695218161,19.91746,2295.0,2294.9,0.05538101]
[1725695218413,13.07358,2294.7,2294.6,0.53509895]
[1725695218557,23.65365602,2294.7,2294.6,0.53509895]
[1725695218763,26.14552719,2294.7,2294.6,0.53509895]
[1725695218997,26.69552719,2294.7,2294.6,0.53509895]
[1725695219306,19.92126,2294.5,2294.4,0.67848376]
[1725695219478,26.83217231,2294.5,2294.4,3.76e-06]
[1725695220018,27.38217231,2294.5,2294.4,3.76e-06]
[1725695221378,27.83850479,2294.5,2294.4,3.76e-06]
[1725695221593,19.12202479,2294.5,2294.4,3.76e-06]
[1725695222676,23.48026479,2294.5,2294.4,3.76e-06]
[1725695224478,27.83850479,2294.5,2294.4,3.76e-06]
[1725695227422,28.55356048,2294.5,2294.4,3.76e-06]
[1725695228451,13.077,2294.1,2294.0,7.46]
[1725695228667,13.077,2294.1,2293.3,7.46]
[1725695228668,2.4883,2294.0,2293.3,7.46]
[1725695228955,8.72126,2293.3,2293.0,3.82]
[1725695229153,4.36077,2293.2,2293.0,3.82]
[1725695230039,4.36071,2293.2,2293.0,3.82]
[1725695230640,2.4883,2293.5,2293.1,0.05370214]
[1725695230641,4.36037,2293.4,2293.1,0.05370214]
[1725695231166,4.36056,2293.3,2293.1,0.05370214]
[1725695231525,6.23381602,2293.8,2293.1,0.05370214]
[1725695231723,0.75397235,2294.0,2293.1,0.05370214]
[1725695231724,4.36071,2293.2,2293.1,0.05370214]
[1725695232161,8.72142,2293.2,2293.1,0.05370214]
[1725695233565,11.77132,2293.2,2293.1,0.05370214]
[1725695233768,8.7218,2293.1,2293.0,3.82]
[1725695233926,9.2718,2293.1,2293.0,3.82]
[1725695234261,10.885024,2293.1,2293.0,3.82]
[1725695235804,2.4999,2293.5,2293.0,3.82]
[1725695236086,4.36026,2293.5,2293.2,2.3945]
[1725695236287,4.35991,2293.7,2293.2,2.3945]
[1725695236288,4.35991,2293.7,2293.3,0.0872013]
[1725695236708,0.45639055,2293.6,2293.4,0.05119959]
[1725695237369,11.22018,2293.5,2293.4,0.05119959]
[1725695237569,11.22018,2293.5,2293.0,3.82]
[1725695237570,4.36056,2293.3,2293.0,3.82]
[1725695237890,4.36056,2293.3,2293.1,0.05119959]
[1725695238057,8.72119,2293.3,2293.1,0.05119959]
[1725695238258,4.36071,2293.2,2293.1,0.05119959]
[1725695238458,4.36071,2293.2,2293.0,3.63119959]
[1725695239001,4.36071,2293.2,2293.1,0.04949294]
[1725695240285,8.72155,2293.2,2293.1,0.04949294]
[1725695240491,10.884739,2293.2,2293.1,0.04949294]
[1725695242105,15.245579,2293.2,2293.1,0.04949294]
[1725695242262,4.36181,2292.7,2292.3,2.3945]
[1725695242463,4.36181,2292.7,2292.4,19.3828992]
[1725695243862,4.3615,2292.8,2292.4,19.3828992]
[1725695244304,8.72308,2292.8,2292.4,19.3828992]
[1725695244799,4.3615,2292.8,2292.4,19.3828992]
[1725695245003,4.3615,2292.8,2291.6,7.46]
[1725695245004,4.3634,2291.8,2291.6,7.46]
[1725695245295,4.36265,2292.2,2291.6,3.76]
[1725695245296,4.36313,2292.0,2291.6,3.76]
[1725695245518,4.36322,2291.9,2291.6,3.76]
[1725695245658,4.36311,2292.0,2291.6,3.76]
[1725695245859,4.36275,2292.2,2291.7,0.08726671]
[1725695246178,8.09586602,2292.6,2291.9,4.36317]
[1725695246179,4.36217,2292.5,2291.9,4.36317]
[1725695246377,8.724,2292.6,2292.1,2.3945]
[1725695246700,4.36197,2292.6,2292.2,0.04823653]
[1725695247058,4.36205,2292.5,2292.2,0.04823653]
[1725695247385,4.36235,2292.4,2292.2,0.04823653]
[1725695247784,4.36205,2292.5,2292.2,0.04823653]
[1725695248100,4.36238,2292.4,2292.2,0.04823653]
[1725695248302,4.36243,2292.3,2292.2,0.04823653]
[1725695248691,8.7248,2292.4,2292.2,0.04823653]
[1725695249006,4.36238,2292.4,2292.2,0.04823653]
[1725695249299,4.36226,2292.4,2292.2,0.04823653]
[1725695249505,4.36243,2292.3,2292.2,0.04823653]
[1725695249705,8.72486,2292.3,2292.2,0.04823653]
[1725695250205,4.36266,2292.2,2291.9,0.16781577]
[1725695250893,8.72545,2292.2,2291.9,0.16781577]
[1725695251061,4.36266,2292.2,2291.8,0.2550689]
[1725695251265,4.36266,2292.2,2291.9,0.25506642]
[1725695251503,8.72465,2292.4,2291.9,0.08725065]
[1725695251704,4.36248,2292.3,2291.9,0.25506642]
[1725695251895,4.36226,2292.4,2291.9,0.25506642]
[1725695252096,0.45652898,2292.3,2291.9,0.25506642]
[1725695252273,0.45652898,2292.3,2292.1,2.4828]
[1725695252477,0.45652898,2292.3,2292.1,2.57004477]
[1725695253207,0.45652898,2292.3,2292.1,2.4828]
[1725695253502,4.81897898,2292.3,2292.1,2.4828]
[1725695253895,4.36275,2292.2,2291.9,0.16781688]
[1725695254090,4.36284,2292.1,2291.8,0.16781688]
[1725695254412,9.18158898,2292.3,2291.9,0.16781688]
[1725695254713,4.36281,2292.1,2291.8,0.1678248]
[1725695255003,4.36302,2292.0,2291.6,3.76]
[1725695255205,4.36302,2292.0,2291.7,19.3828992]
[1725695257016,4.3635,2291.8,2291.6,3.76]
[1725695257396,4.36357,2291.7,2291.6,3.76]
[1725695258105,8.72828,2291.4,2291.3,19.3828992]
[1725695258437,4.36486,2291.1,2290.9,3.76]
[1725695258840,4.3649,2291.0,2290.9,3.76]
[1725695259149,4.36486,2291.1,2290.9,3.76]
[1725695260108,8.72969,2291.1,2290.9,23.1428992]
[1725695260619,4.3649,2291.0,2290.9,23.1428992]
[1725695261148,4.36367,2291.7,2291.1,4.36469]
[1725695261303,4.36367,2291.7,2291.2,2.57007749]
[1725695261508,8.7274,2291.7,2291.3,0.08727745]
[1725695262337,4.36381,2291.6,2291.3,0.08727745]
[1725695262904,4.36367,2291.7,2291.3,0.08727745]
[1725695263118,4.36376,2291.6,2291.3,0.08727745]
[1725695263314,4.36398,2291.5,2291.2,2.4828]
[1725695263949,4.36367,2291.7,2291.2,2.4828]
[1725695263950,4.36376,2291.6,2291.2,2.4828]
[1725695264311,4.36376,2291.6,2291.3,19.3828992]
[1725695265447,4.36367,2291.7,2291.3,19.3828992]
[1725695265857,8.72742,2291.7,2291.3,19.3828992]
[1725695266037,8.72736,2291.7,2291.3,19.3828992]
[1725695266443,8.72736,2291.7,2291.2,2.4828]
[1725695266444,4.36304,2292.0,2291.5,4.36385]
[1725695266642,4.36304,2292.0,2291.6,19.3828992]
[1725695266832,8.72714,2291.7,2291.6,19.3828992]
[1725695267033,4.36357,2291.7,2291.6,19.3828992]
[1725695267234,0.45649292,2291.7,2291.6,19.3828992]
[1725695267935,9.18363292,2291.7,2291.6,19.3828992]
[1725695268129,10.10199621,2291.7,2291.6,19.3828992]
[1725695268833,16.79426621,2291.7,2291.6,19.3828992]
[1725695269041,17.34426621,2291.7,2291.6,19.3828992]
[1725695270398,4.36425,2291.4,2291.1,7.46]
[1725695270687,4.36425,2291.4,2291.0,19.3828992]
[1725695271075,8.72856,2291.4,2291.0,19.3828992]
[1725695271456,4.36425,2291.4,2291.0,19.3828992]
[1725695271684,4.36405,2291.5,2291.1,0.08728902]
[1725695271867,4.36396,2291.5,2291.1,0.08728902]
[1725695272355,8.72777,2291.6,2291.1,0.08728902]
[1725695272989,4.36398,2291.5,2291.1,0.08728902]
[1725695274197,2.2885,2290.9,2290.5,0.90887033]
[1725695274351,4.36719,2289.8,2289.7,0.90887033]
[1725695274555,4.36755,2289.7,2289.3,1.07696676]
[1725695274867,4.36755,2289.7,2289.2,2.42889643]
[1725695275065,4.36752,2289.7,2289.2,2.2608]
[1725695275267,4.36618,2290.4,2289.3,4.97018]
[1725695275268,2.2885,2290.4,2289.3,4.97018]
[1725695275605,4.36674,2290.1,2289.3,4.97018]
[1725695275762,4.36734,2289.8,2289.4,0.04759835]
[1725695275953,4.36751,2289.7,2289.4,0.04759835]
[1725695276195,8.73467,2289.8,2289.4,0.33364618]
[1725695276408,4.36742,2289.7,2289.4,0.33364618]
[1725695276961,8.7346,2289.8,2289.4,0.33364618]
[1725695277166,4.36738,2289.7,2289.4,0.33364618]
[1725695277781,8.73461,2289.8,2289.4,0.33364618]
[1725695278221,4.3674,2289.7,2289.4,0.33364618]
[1725695278804,8.73465,2289.8,2289.4,0.33364618]
[1725695278972,8.73462,2289.8,2289.4,0.33364618]
[1725695279168,4.36741,2289.7,2289.4,0.33364618]
[1725695279693,4.3673,2289.8,2289.4,0.33364618]
[1725695279995,8.73389,2290.0,2289.4,4.78893939]
[1725695280193,8.73391,2290.0,2289.4,4.50289156]
[1725695280385,8.73391,2290.0,2289.4,4.41554835]
[1725695280583,8.73392,2290.0,2289.4,4.41554835]
[1725695280794,8.73386,2290.0,2289.4,4.41554835]
[1725695280997,4.36653,2290.2,2289.6,4.36754]
[1725695281310,4.36634,2290.3,2289.7,4.50609741]
[1725695281609,4.36619,2290.4,2289.8,4.45439902]
[1725695281910,4.36619,2290.4,2289.9,4.4184135]
[1725695282064,4.36616,2290.4,2289.9,4.4184135]
[1725695282374,4.36628,2290.3,2289.9,0.0514235]
[1725695282580,4.82299676,2290.3,2289.9,0.0514235]
[1725695282775,4.82299676,2290.3,2289.7,4.36726]
[1725695283110,4.82299676,2290.3,2289.7,8.73452]
[1725695283296,0.45671676,2290.3,2289.8,4.41828137]
[1725695284511,0.45671676,2290.3,2290.2,4.36643]
[1725695284838,0.45667163,2290.8,2290.5,6.62665]
[1725695284994,0.45667163,2290.8,2290.6,0.08730405]
[1725695285397,4.36492,2291.0,2290.7,0.05103099]
[1725695285633,4.36492,2291.0,2290.5,2.2608]
[1725695285891,4.36492,2291.0,2290.6,0.05029535]
[1725695286141,4.36547,2290.7,2290.6,0.05029535]
[1725695286634,4.36547,2290.7,2290.3,19.3828992]
[1725695286936,4.36547,2290.7,2290.4,0.05029535]
[1725695287104,4.36538,2290.8,2290.4,0.05029535]
[1725695287316,4.36552,2290.7,2290.4,0.05029535]
[1725695287927,4.36576,2290.6,2290.4,0.05029535]
[1725695288237,4.36552,2290.7,2290.4,0.05029535]
[1725695288420,4.36577,2290.6,2290.4,0.05029535]
[1725695288736,4.36577,2290.6,2290.1,19.3828992]
[1725695288934,4.36577,2290.6,2290.5,0.05056504]
[1725695289091,4.36552,2290.7,2290.1,19.3828992]
[1725695289290,4.36552,2290.7,2290.5,0.05056504]
[1725695289532,4.36552,2290.7,2290.2,4.3664]
[1725695289533,8.7311,2290.7,2290.2,4.3664]
[1725695289831,4.36552,2290.7,2290.1,23.7493792]
[1725695290036,4.36552,2290.7,2290.2,0.05056504]
[1725695290607,4.36545,2290.8,2290.3,4.36617]
[1725695290836,4.36503,2291.0,2290.4,6.81302838]
[1725695291012,4.36522,2290.9,2290.5,0.04941219]
[1725695291208,4.36532,2290.8,2290.5,0.04941219]
[1725695291820,4.36504,2291.0,2290.5,0.04941219]
[1725695291821,4.36521,2290.9,2290.5,0.04941219]
[1725695292118,4.36547,2290.7,2290.5,0.04941219]
[1725695292336,4.36547,2290.7,2290.1,30.4756792]
[1725695292544,4.36547,2290.7,2290.6,0.04941219]
[1725695292698,4.36547,2290.7,2290.1,26.1091792]
[1725695292899,4.36547,2290.7,2290.6,0.04941219]
[1725695293101,4.36547,2290.7,2290.1,26.1091792]
[1725695293301,8.73158,2290.6,2290.1,26.1091792]
[1725695293516,4.36577,2290.6,2290.1,26.1092092]
[1725695294414,4.36577,2290.6,2290.2,19.3828992]
[1725695294741,4.36606,2290.4,2290.1,19.3828992]
[1725695295102,4.36577,2290.6,2290.1,19.3828992]
[1725695295303,8.73162,2290.6,2290.2,0.08731982]
[1725695295514,4.36586,2290.5,2290.1,19.3828992]
[1725695297401,4.3661,2290.4,2290.1,19.3828992]
[1725695300248,4.36612,2290.4,2290.1,19.3828992]
[1725695300428,4.36643,2290.2,2290.0,19.3828992]
[1725695300608,4.36643,2290.2,2290.1,19.3828992]
[1725695301243,5.239691,2290.2,2290.1,19.3828992]
[1725695302342,4.36681,2290.0,2289.9,23.1428992]
[1725695302502,8.73362,2290.0,2289.9,3.76]
[1725695302703,4.36738,2289.7,2289.6,19.3828992]
[1725695302946,4.36738,2289.7,2289.4,19.3828992]
[1725695304007,4.36735,2289.8,2289.4,19.3828992]
[1725695304008,8.73472,2289.8,2289.4,19.3828992]
[1725695304637,4.36743,2289.7,2289.4,19.3828992]
[1725695305045,8.73466,2289.8,2289.4,19.3828992]
[1725695305232,4.36743,2289.7,2289.4,19.3828992]
[1725695305711,4.36743,2289.7,2289.5,0.04506477]
[1725695306339,4.36743,2289.7,2289.5,19.42796397]
[1725695306560,4.36731,2289.8,2289.5,19.42796397]
[1725695308530,4.36756,2289.7,2289.5,19.42796397]
[1725695310246,4.36757,2289.6,2289.5,19.42796397]
[1725695310606,4.36757,2289.6,2289.5,0.04506477]
[1725695311044,4.36757,2289.6,2289.3,19.3828992]
[1725695311205,8.73527,2289.6,2289.5,0.04506477]
[1725695311409,4.36795,2289.5,2289.3,19.3828992]
[1725695312410,3.27851747,2289.8,2289.3,19.3828992]
[1725695312619,4.36795,2289.4,2289.3,19.3828992]
[1725695314045,8.73566,2289.5,2289.3,19.3828992]
[1725695314252,4.36795,2289.4,2289.3,19.3828992]
[1725695314961,4.36777,2289.5,2289.3,19.3828992]
[1725695315160,0.45680588,2289.8,2289.4,4.45514971]
[1725695315338,0.45680588,2289.8,2289.5,19.3828992]
[1725695316822,4.36573,2290.6,2290.0,4.36665]
[1725695317028,0.45665327,2290.4,2290.1,19.3828992]
[1725695317565,2.3393,2290.2,2289.4,9.7114]
[1725695317737,4.36707,2289.9,2289.4,2.2514]
[1725695317938,4.36707,2289.9,2289.4,2.3387469]
[1725695318421,8.73419,2289.9,2289.4,2.3387469]
[1725695318625,8.73419,2289.9,2289.4,2.2514]
[1725695318855,4.36707,2289.9,2289.4,2.2514]
[1725695319023,4.36707,2289.9,2289.4,2.33874737]
[1725695319223,9.607584,2289.9,2289.4,2.33874737]
[1725695319419,9.607584,2289.9,2289.4,2.2514]
[1725695319966,11.07349,2289.9,2289.3,8.73605]
[1725695320141,6.70637,2289.9,2289.3,8.73605]
[1725695320725,6.70637,2289.9,2289.4,0.04642417]
[1725695321322,6.70637,2289.9,2289.4,4.50167706]
[1725695321523,2.3393,2289.9,2289.5,4.36775]
[1725695321764,4.36681,2290.0,2289.5,4.36775]
[1725695321972,4.36681,2290.0,2289.6,0.04642417]
[1725695322276,4.36702,2289.9,2289.6,0.04642417]
[1725695322435,4.36702,2289.9,2289.4,6.61935]
[1725695322641,4.36702,2289.9,2289.5,0.04642417]
[1725695323069,4.36702,2289.9,2289.5,0.13376708]
[1725695325740,4.36702,2289.9,2289.5,4.50149708]
[1725695325931,6.70603,2290.1,2289.5,4.50149708]
[1725695325932,4.36685,2290.0,2289.5,4.50149708]
[1725695326167,4.36673,2290.1,2289.6,4.36755]
[1725695326467,4.36672,2290.1,2289.7,19.51617129]
[1725695326667,4.36672,2290.1,2289.7,19.42883334]
[1725695328064,4.36719,2289.8,2289.7,0.04593414]
[1725695328246,4.36742,2289.7,2289.2,27.5110792]
[1725695328447,4.36719,2289.8,2289.3,0.04593414]
[1725695328648,4.36719,2289.8,2289.3,4.36812]
[1725695328845,4.36719,2289.8,2289.4,2.2514]
[1725695329069,4.36719,2289.8,2289.4,2.29733414]
[1725695330182,4.36719,2289.8,2289.4,2.38468103]
[1725695330486,4.36719,2289.8,2289.4,2.29733414]
[1725695331050,4.36719,2289.8,2289.4,0.04593414]
[1725695332055,8.73449,2289.8,2289.4,0.04593414]
[1725695332384,0.45676942,2289.7,2289.4,0.04593414]
[1725695333218,0.45676942,2289.7,2289.5,19.3828992]
[1725695333494,4.82418942,2289.7,2289.6,0.04688925]
[1725695334069,0.45676942,2289.7,2289.6,0.04688925]
[1725695336566,0.45676942,2289.7,2289.6,0.13423273]
[1725695337037,0.45676942,2289.7,2289.6,4.50179888]
[1725695337490,0.45676942,2289.7,2289.6,0.13422888]
[1725695337891,0.45676942,2289.7,2289.6,0.04688925]
[1725695339334,2.2545,2290.9,2289.6,19.59766933]
[1725695339549,2.2545,2290.9,2290.2,6.71088]
[1725695339550,4.3654,2290.8,2290.2,6.71088]
[1725695339695,4.3654,2290.8,2290.3,0.08731331]
[1725695339696,0.45672963,2290.6,2290.3,0.08731331]
[1725695340332,0.45672963,2290.6,2290.4,0.04693824]
[1725695341825,0.45672963,2290.6,2290.5,4.45316299]
[1725695342249,0.45672963,2290.6,2290.5,4.49919514]
[1725695342746,0.45672963,2290.6,2290.5,8.86504514]
[1725695343911,0.45672963,2290.6,2290.5,4.49919514]
[1725695344814,0.45672963,2290.6,2290.5,4.41188215]
[1725695345259,0.45672963,2290.6,2290.5,23.79478135]
[1725695345407,0.45672963,2290.6,2290.5,19.42893135]
[1725695345918,4.82238963,2290.6,2290.5,19.42893135]
[1725695346939,13.13679059,2290.6,2290.5,0.04603215]
[1725695347143,13.13679059,2290.6,2289.9,34.9698492]
[1725695347144,4.36604,2290.5,2289.9,34.9698492]
[1725695347514,4.36641,2290.3,2289.9,30.6028992]
[1725695347715,4.36641,2290.3,2290.0,19.3828992]
[1725695348443,6.62095,2290.2,2290.0,19.3828992]
[1725695349944,4.36645,2290.2,2290.0,19.3828992]
[1725695350306,2.3178,2290.3,2290.0,19.3828992]
[1725695350506,4.36627,2290.3,2290.0,19.3828992]
[1725695350705,4.36627,2290.3,2290.1,0.04502808]
[1725695351144,4.36605,2290.4,2290.1,0.04502808]
[1725695351447,4.36605,2290.4,2290.1,19.42792728]
[1725695351749,8.73227,2290.4,2290.1,19.42792728]
[1725695352313,4.36605,2290.4,2290.1,19.42792728]
[1725695352670,5.13510796,2290.4,2290.1,19.42792728]
[1725695354018,4.36643,2290.2,2290.1,19.42792728]
[1725695355861,0.45676417,2290.3,2290.1,19.42792728]
[1725695356223,4.82300417,2290.3,2290.1,19.42792728]
[1725695356853,0.45676417,2290.3,2290.1,19.42792728]
[1725695358462,4.82309417,2290.3,2290.1,19.42792728]
[1725695360380,0.45676417,2290.3,2290.1,19.42792728]
[1725695360551,3.74865148,2291.0,2290.1,19.42792728]
[1725695360552,6.68248,2291.2,2290.6,6.6542]
[1725695360779,0.45670427,2291.0,2290.7,19.47019718]
[1725695360944,0.45670427,2291.0,2290.9,11.01888]
[1725695361143,4.36353,2291.8,2291.2,8.72882]
[1725695361409,4.36353,2291.8,2291.3,19.51497269]
[1725695361543,4.36333,2291.9,2291.3,19.51497269]
[1725695361944,4.36333,2291.9,2291.4,19.3828992]
[1725695362170,5.031443,2291.9,2291.5,0.08727349]
[1725695362372,5.031443,2291.9,2291.6,0.04423282]
[1725695362795,4.36338,2291.8,2291.5,0.08726915]
[1725695362946,4.36338,2291.8,2291.4,19.3828992]
[1725695362947,4.36377,2291.6,2291.4,19.3828992]
[1725695365554,8.72702,2291.8,2291.5,0.04413497]
[1725695365798,0.7349393,2291.7,2291.5,0.04413497]
[1725695366587,0.7349393,2291.7,2291.3,19.3828992]
[1725695366761,4.36348,2291.8,2291.4,0.04413497]
[1725695367163,2.985913,2291.9,2291.4,0.04413497]
[1725695367164,7.349153,2291.9,2291.4,0.04413497]
[1725695367749,4.36387,2291.6,2291.4,0.04413497]
[1725695368580,4.36395,2291.5,2291.4,0.04413497]
[1725695368897,4.91395,2291.5,2291.4,0.04413497]
[1725695369201,10.205671,2291.5,2291.4,0.04413497]
[1725695369396,9.2779,2291.5,2291.4,0.04413497]
[1725695369602,9.2779,2291.5,2290.7,19.3828992]
[1725695369603,4.36473,2291.1,2290.7,19.3828992]
[1725695369760,8.72884,2291.3,2290.6,10.41424]
[1725695369954,4.36434,2291.3,2290.6,10.41424]
[1725695370156,4.36454,2291.2,2290.6,10.41424]
[1725695370968,4.36472,2291.1,2290.6,10.41424]
[1725695371700,8.72883,2291.3,2290.6,10.41424]
[1725695371880,4.36455,2291.2,2290.7,4.36545]
[1725695373286,4.36455,2291.2,2290.6,12.49109]
[1725695373603,4.36455,2291.2,2290.6,12.4911]
[1725695374774,4.36434,2291.3,2290.8,2.4662]
[1725695374970,4.36434,2291.3,2290.8,6.83147]
[1725695375202,4.36434,2291.3,2290.8,26.2143692]
[1725695375702,8.72877,2291.3,2290.8,26.2143692]
[1725695375914,4.36452,2291.2,2290.8,26.2143692]
[1725695376272,4.36452,2291.2,2290.8,19.3828992]
[1725695376787,4.36452,2291.2,2290.8,19.38204268]
[1725695377312,0.45674276,2291.1,2290.8,19.38204268]
[1725695378752,4.82147276,2291.1,2290.8,19.38204268]
[1725695380634,4.82147276,2291.1,2290.9,0.04282564]
[1725695380835,5.85601974,2291.1,2290.9,0.04282564]
[1725695381230,5.85601974,2291.1,2290.9,19.42486832]
[1725695385481,4.82147276,2291.1,2290.9,19.42486832]